[Event "*** Titled Tuesday Blitz"]
[Site "Chess.com"]
[Date "2019.12.03"]
[Round "8"]
[White "Supernotar"]
[Black "MatthewG-p4p"]
[Result "0-1"]
[WhiteElo "2639"]
[BlackElo "2783"]
[TimeControl "180+2"]
[EndTime "14:54:16 PST"]
[Termination "MatthewG-p4p won by checkmate"]

1. d4 {[%clk 0:03:01.9]} 1... Nf6 {[%clk 0:02:58.9]} 2. c4 {[%clk 0:03:02.6]}
2... c5 {[%clk 0:02:59.8]} 3. Nf3 {[%clk 0:03:03.6]} 3... cxd4 {[%clk 0:02:58]}
4. Nxd4 {[%clk 0:03:04.8]} 4... e5 {[%clk 0:02:59.7]} 5. Nb5 {[%clk 0:03:05.4]}
5... d5 {[%clk 0:03:01]} 6. cxd5 {[%clk 0:03:06.7]} 6... Bc5 {[%clk 0:03:02.6]}
7. N5c3 {[%clk 0:03:07.9]} 7... O-O {[%clk 0:03:04]} 8. g3 {[%clk 0:03:08.6]}
8... e4 {[%clk 0:03:05.5]} 9. Bg2 {[%clk 0:03:08.5]} 9... Re8 {[%clk 0:03:06.5]}
10. O-O {[%clk 0:03:07.3]} 10... Bf5 {[%clk 0:02:57.6]} 11. Be3 {[%clk
0:03:06.8]} 11... Bxe3 {[%clk 0:02:56.5]} 12. fxe3 {[%clk 0:03:05.9]} 12... Bg6
{[%clk 0:02:58.4]} 13. Qd4 {[%clk 0:03:06.7]} 13... Nbd7 {[%clk 0:02:58.1]} 14.
Nd2 {[%clk 0:03:07.2]} 14... Qb6 {[%clk 0:02:51.4]} 15. Nc4 {[%clk 0:02:44.3]}
15... Qa6 {[%clk 0:02:41.8]} 16. a4 {[%clk 0:02:34.6]} 16... Rac8 {[%clk
0:02:22.5]} 17. Nb5 {[%clk 0:02:28.9]} 17... Red8 {[%clk 0:02:20.6]} 18. Rfc1
{[%clk 0:01:56.5]} 18... Nc5 {[%clk 0:02:09.3]} 19. Ncd6 {[%clk 0:01:51.8]}
19... Rxd6 {[%clk 0:01:28.5]} 20. Nxd6 {[%clk 0:01:51.2]} 20... Qxd6 {[%clk
0:01:24.8]} 21. b4 {[%clk 0:01:51.5]} 21... b6 {[%clk 0:01:25.7]} 22. bxc5
{[%clk 0:01:49.3]} 22... bxc5 {[%clk 0:01:27.6]} 23. Qc4 {[%clk 0:01:33.2]}
23... h5 {[%clk 0:01:27.7]} 24. Bh3 {[%clk 0:01:12.7]} 24... Rc7 {[%clk
0:01:28.6]} 25. Rab1 {[%clk 0:00:39.1]} 25... a6 {[%clk 0:00:52.8]} 26. Rb8+
{[%clk 0:00:39.2]} 26... Kh7 {[%clk 0:00:54.2]} 27. Rc8 {[%clk 0:00:38]} 27...
Rb7 {[%clk 0:00:08.8]} 28. Qxc5 {[%clk 0:00:37.3]} 28... Qe5 {[%clk 0:00:10.4]}
29. d6 {[%clk 0:00:27]} 29... Qb2 {[%clk 0:00:10.6]} 30. Rc7 {[%clk 0:00:23.3]}
30... Rb8 {[%clk 0:00:08.2]} 31. d7 {[%clk 0:00:17.6]} 31... Qxe2 {[%clk
0:00:09.2]} 32. Bf1 {[%clk 0:00:13.5]} 32... Qd2 {[%clk 0:00:08.3]} 33. Rc8
{[%clk 0:00:12.9]} 33... Nxd7 {[%clk 0:00:07.6]} 34. Rxb8 {[%clk 0:00:10.1]}
34... Nxc5 {[%clk 0:00:08]} 35. Rbb1 {[%clk 0:00:04.4]} 35... Qxe3+ {[%clk
0:00:09.1]} 36. Kg2 {[%clk 0:00:05.1]} 36... Qf3+ {[%clk 0:00:10.5]} 37. Kg1
{[%clk 0:00:06.4]} 37... Qe3+ {[%clk 0:00:12.2]} 38. Kg2 {[%clk 0:00:07.5]}
38... Nd3 {[%clk 0:00:14.1]} 39. Rd1 {[%clk 0:00:05]} 39... Qf2+ {[%clk
0:00:15.2]} 40. Kh1 {[%clk 0:00:06.3]} 40... Qf3+ {[%clk 0:00:16.7]} 41. Kg1
{[%clk 0:00:07.5]} 41... Qf2+ {[%clk 0:00:18.3]} 42. Kh1 {[%clk 0:00:08.8]}
42... Ne5 {[%clk 0:00:16.9]} 43. Bg2 {[%clk 0:00:08.7]} 43... Ng4 {[%clk
0:00:17.7]} 44. Rf1 {[%clk 0:00:09.3]} 44... Qd4 {[%clk 0:00:18.3]} 45. h3
{[%clk 0:00:09.3]} 45... Ne3 {[%clk 0:00:18.8]} 46. Rg1 {[%clk 0:00:09.7]} 46...
Nf5 {[%clk 0:00:19.4]} 47. Kh2 {[%clk 0:00:09.4]} 47... Qe5 {[%clk 0:00:20.3]}
48. Bh1 {[%clk 0:00:09.8]} 48... Nxg3 {[%clk 0:00:21.8]} 49. Kg2 {[%clk
0:00:09.6]} 49... e3 {[%clk 0:00:22.7]} 50. Rbe1 {[%clk 0:00:09.8]} 50... Be4+
{[%clk 0:00:24.1]} 51. Kh2 {[%clk 0:00:11]} 51... Nf1# {[%clk 0:00:25.3]} 0-1

[Event "*** Titled Tuesday Blitz"]
[Site "Chess.com"]
[Date "2019.12.03"]
[Round "8"]
[White "kleopl"]
[Black "Kosche007"]
[Result "1-0"]
[WhiteElo "2481"]
[BlackElo "2317"]
[TimeControl "180+2"]
[EndTime "14:54:19 PST"]
[Termination "kleopl won by checkmate"]

1. c4 {[%clk 0:03:01.9]} 1... g6 {[%clk 0:03:00.3]} 2. Nc3 {[%clk 0:03:01.5]}
2... Bg7 {[%clk 0:03:01.3]} 3. g3 {[%clk 0:03:03]} 3... Nf6 {[%clk 0:03:01.6]}
4. Bg2 {[%clk 0:03:04.1]} 4... O-O {[%clk 0:03:02.6]} 5. e4 {[%clk 0:03:03.4]}
5... c5 {[%clk 0:03:02.3]} 6. Nge2 {[%clk 0:03:01.5]} 6... Nc6 {[%clk
0:03:03.4]} 7. O-O {[%clk 0:03:00.7]} 7... Ne8 {[%clk 0:03:04.4]} 8. d3 {[%clk
0:03:01.1]} 8... Nc7 {[%clk 0:03:05.2]} 9. f4 {[%clk 0:03:01.3]} 9... Ne6 {[%clk
0:03:05.5]} 10. f5 {[%clk 0:03:00.5]} 10... Ned4 {[%clk 0:03:06.5]} 11. g4
{[%clk 0:02:55]} 11... Rb8 {[%clk 0:03:07.2]} 12. Ng3 {[%clk 0:02:52.6]} 12...
b5 {[%clk 0:03:06.2]} 13. cxb5 {[%clk 0:02:26.9]} 13... Nxb5 {[%clk 0:03:06.1]}
14. Nd5 {[%clk 0:02:28.2]} 14... e6 {[%clk 0:03:01.3]} 15. f6 {[%clk 0:02:22.1]}
15... Bh8 {[%clk 0:02:53.3]} 16. g5 {[%clk 0:02:04.4]} 16... exd5 {[%clk
0:02:52.7]} 17. exd5 {[%clk 0:02:06.3]} 17... Ne5 {[%clk 0:02:49.4]} 18. d6
{[%clk 0:01:50.4]} 18... Bb7 {[%clk 0:02:19.3]} 19. Bf4 {[%clk 0:01:49.6]} 19...
Bxg2 {[%clk 0:02:15.9]} 20. Kxg2 {[%clk 0:01:51.5]} 20... Re8 {[%clk 0:02:11.7]}
21. h4 {[%clk 0:01:51.3]} 21... Nxd6 {[%clk 0:02:03]} 22. b3 {[%clk 0:01:39.6]}
22... Qb6 {[%clk 0:01:43.3]} 23. h5 {[%clk 0:01:14.5]} 23... Qc6+ {[%clk
0:01:43]} 24. Kh3 {[%clk 0:01:15]} 24... Qd5 {[%clk 0:01:38]} 25. Qc2 {[%clk
0:00:45.2]} 25... Qe6+ {[%clk 0:01:27.5]} 26. Kg2 {[%clk 0:00:43.2]} 26... Ng4
{[%clk 0:01:23.6]} 27. Rae1 {[%clk 0:00:38.6]} 27... Qd5+ {[%clk 0:01:23.7]} 28.
Kh3 {[%clk 0:00:39.8]} 28... Ne5 {[%clk 0:00:59.5]} 29. Qg2 {[%clk 0:00:26.2]}
29... Qe6+ {[%clk 0:00:48.7]} 30. Kh2 {[%clk 0:00:27.2]} 30... Ng4+ {[%clk
0:00:49.7]} 31. Kg1 {[%clk 0:00:26.8]} 31... Qxe1 {[%clk 0:00:47.7]} 32. Rxe1
{[%clk 0:00:28.4]} 32... Rxe1+ {[%clk 0:00:48.9]} 33. Nf1 {[%clk 0:00:30.1]}
33... Rbe8 {[%clk 0:00:38.4]} 34. Qxg4 {[%clk 0:00:28.3]} 34... Nf5 {[%clk
0:00:35.9]} 35. hxg6 {[%clk 0:00:28.4]} 35... hxg6 {[%clk 0:00:37]} 36. Kf2
{[%clk 0:00:23.8]} 36... Ra1 {[%clk 0:00:29.5]} 37. a4 {[%clk 0:00:22.9]} 37...
Ra2+ {[%clk 0:00:29.5]} 38. Nd2 {[%clk 0:00:21.9]} 38... d5 {[%clk 0:00:21.6]}
39. Qf3 {[%clk 0:00:22]} 39... Nd4 {[%clk 0:00:19.8]} 40. Qxd5 {[%clk
0:00:21.3]} 40... Re2+ {[%clk 0:00:19.6]} 41. Kg3 {[%clk 0:00:21]} 41... Nf5+
{[%clk 0:00:19.7]} 42. Kf3 {[%clk 0:00:19.7]} 42... Rexd2 {[%clk 0:00:15.6]} 43.
Bxd2 {[%clk 0:00:18.6]} 43... Rxd2 {[%clk 0:00:17.5]} 44. Qd8+ {[%clk
0:00:19.6]} 44... Kh7 {[%clk 0:00:18.4]} 45. Ke4 {[%clk 0:00:16]} 45... Re2+
{[%clk 0:00:18.4]} 46. Kd5 {[%clk 0:00:17.1]} 46... Re3 {[%clk 0:00:18]} 47.
Kxc5 {[%clk 0:00:17.7]} 47... Rg3 {[%clk 0:00:18.8]} 48. Qe8 {[%clk 0:00:17.2]}
48... Rxg5 {[%clk 0:00:17.3]} 49. Qxf7+ {[%clk 0:00:18.5]} 49... Kh6 {[%clk
0:00:18.7]} 50. Qf8+ {[%clk 0:00:20]} 50... Kh7 {[%clk 0:00:19.5]} 51. f7 {[%clk
0:00:21.4]} 51... Bd4+ {[%clk 0:00:17.7]} 52. Kc6 {[%clk 0:00:21.7]} 52... Ng7
{[%clk 0:00:17]} 53. Qg8+ {[%clk 0:00:22.6]} 53... Kh6 {[%clk 0:00:17.4]} 54.
Qh8# {[%clk 0:00:23.1]} 1-0

[Event "*** Titled Tuesday Blitz"]
[Site "Chess.com"]
[Date "2019.12.03"]
[Round "8"]
[White "Olga_Zhuravleva"]
[Black "przemekpiotrowski"]
[Result "0-1"]
[WhiteElo "2248"]
[BlackElo "2430"]
[TimeControl "180+2"]
[EndTime "14:54:19 PST"]
[Termination "przemekpiotrowski won by resignation"]

1. e4 {[%clk 0:03:01.9]} 1... c5 {[%clk 0:02:49.9]} 2. Nf3 {[%clk 0:03:02]} 2...
Nc6 {[%clk 0:02:50.5]} 3. Nc3 {[%clk 0:03:02.4]} 3... g6 {[%clk 0:02:50.4]} 4.
d4 {[%clk 0:03:02.9]} 4... cxd4 {[%clk 0:02:52.3]} 5. Nxd4 {[%clk 0:03:04.1]}
5... Bg7 {[%clk 0:02:53.6]} 6. Nb3 {[%clk 0:03:05.7]} 6... Nf6 {[%clk 0:02:49]}
7. Be2 {[%clk 0:03:06.8]} 7... O-O {[%clk 0:02:49.7]} 8. O-O {[%clk 0:03:07.9]}
8... d6 {[%clk 0:02:49.3]} 9. Re1 {[%clk 0:03:08.9]} 9... a6 {[%clk 0:02:50.2]}
10. Bf1 {[%clk 0:03:09.5]} 10... b5 {[%clk 0:02:51.1]} 11. Bg5 {[%clk 0:03:11]}
11... Bb7 {[%clk 0:02:51.4]} 12. Nd5 {[%clk 0:03:12.1]} 12... Nxd5 {[%clk
0:02:25.7]} 13. exd5 {[%clk 0:03:14]} 13... Ne5 {[%clk 0:02:27]} 14. c3 {[%clk
0:03:13.1]} 14... h6 {[%clk 0:02:26.1]} 15. Bh4 {[%clk 0:03:13.4]} 15... Re8
{[%clk 0:02:11]} 16. Rc1 {[%clk 0:03:13.1]} 16... Rc8 {[%clk 0:02:12]} 17. h3
{[%clk 0:03:11.5]} 17... Qd7 {[%clk 0:02:03.6]} 18. Rc2 {[%clk 0:03:10.4]} 18...
Qf5 {[%clk 0:01:44.4]} 19. Nd4 {[%clk 0:02:56.2]} 19... Qd7 {[%clk 0:01:39.3]}
20. Nf3 {[%clk 0:02:33.3]} 20... Rc5 {[%clk 0:01:19.7]} 21. Rd2 {[%clk
0:02:27.9]} 21... Qf5 {[%clk 0:01:16.1]} 22. Nd4 {[%clk 0:02:18]} 22... Qd7
{[%clk 0:01:16.3]} 23. Nb3 {[%clk 0:02:18.4]} 23... Rc7 {[%clk 0:01:14]} 24. Kh1
{[%clk 0:02:14.1]} 24... Qf5 {[%clk 0:00:52.4]} 25. Bg3 {[%clk 0:02:05.3]} 25...
Nc4 {[%clk 0:00:49.8]} 26. Bxc4 {[%clk 0:02:02.4]} 26... bxc4 {[%clk 0:00:42.3]}
27. Nc1 {[%clk 0:01:56.9]} 27... Rd7 {[%clk 0:00:33.2]} 28. Ne2 {[%clk
0:01:43.8]} 28... Be5 {[%clk 0:00:33]} 29. f4 {[%clk 0:01:43.3]} 29... Bf6
{[%clk 0:00:31.1]} 30. Bf2 {[%clk 0:01:25.4]} 30... Rc8 {[%clk 0:00:29.3]} 31.
Be3 {[%clk 0:01:13]} 31... Qh5 {[%clk 0:00:25.3]} 32. Kh2 {[%clk 0:01:11]} 32...
g5 {[%clk 0:00:22.7]} 33. fxg5 {[%clk 0:00:41]} 33... hxg5 {[%clk 0:00:24.6]}
34. Qa4 {[%clk 0:00:30.6]} 34... Be5+ {[%clk 0:00:21.8]} 35. Kg1 {[%clk
0:00:29.2]} 35... Rdc7 {[%clk 0:00:22.9]} 36. Nd4 {[%clk 0:00:19.8]} 36... Qg6
{[%clk 0:00:23.8]} 37. Nf3 {[%clk 0:00:20.2]} 37... Bf6 {[%clk 0:00:23.4]} 38.
Qd1 {[%clk 0:00:20.1]} 38... Qf5 {[%clk 0:00:23.8]} 39. Bf2 {[%clk 0:00:18.7]}
39... g4 {[%clk 0:00:23.5]} 40. hxg4 {[%clk 0:00:18.6]} 40... Qxg4 {[%clk
0:00:25.4]} 41. Qe2 {[%clk 0:00:19.2]} 41... Kg7 {[%clk 0:00:24.1]} 42. Qe3
{[%clk 0:00:19.2]} 42... Rh8 {[%clk 0:00:23.5]} 43. Nh2 {[%clk 0:00:20.3]} 43...
Qh5 {[%clk 0:00:23.5]} 44. Qg3+ {[%clk 0:00:20.5]} 44... Kf8 {[%clk 0:00:24]}
45. Red1 {[%clk 0:00:20.8]} 45... Be5 {[%clk 0:00:24.4]} 46. Qh3 {[%clk
0:00:21]} 46... Qg6 {[%clk 0:00:19.2]} 47. Bh4 {[%clk 0:00:18.1]} 47... Bc8
{[%clk 0:00:17.6]} 48. g4 {[%clk 0:00:15.8]} 48... Bxh2+ {[%clk 0:00:18.5]} 49.
Qxh2 {[%clk 0:00:16.1]} 49... Qxg4+ {[%clk 0:00:18]} 50. Kf1 {[%clk 0:00:14.8]}
50... Rxh4 {[%clk 0:00:17.8]} 51. Qf2 {[%clk 0:00:15.2]} 51... Rh1+ {[%clk
0:00:18.1]} 0-1

[Event "*** Titled Tuesday Blitz"]
[Site "Chess.com"]
[Date "2019.12.03"]
[Round "8"]
[White "riconaipe"]
[Black "Perecke"]
[Result "0-1"]
[WhiteElo "2580"]
[BlackElo "2197"]
[TimeControl "180+2"]
[EndTime "14:54:25 PST"]
[Termination "Perecke won on time"]

1. d4 {[%clk 0:03:01.9]} 1... d5 {[%clk 0:03:00.6]} 2. c4 {[%clk 0:03:00.8]}
2... e6 {[%clk 0:03:01.4]} 3. Nc3 {[%clk 0:03:00.7]} 3... Nf6 {[%clk 0:03:02.9]}
4. Bg5 {[%clk 0:03:01.4]} 4... Be7 {[%clk 0:03:04.3]} 5. e3 {[%clk 0:03:02.6]}
5... h6 {[%clk 0:02:41.2]} 6. Bh4 {[%clk 0:03:03.1]} 6... O-O {[%clk 0:02:42.7]}
7. Nf3 {[%clk 0:03:04]} 7... c6 {[%clk 0:02:38.4]} 8. Rc1 {[%clk 0:03:03.6]}
8... Nbd7 {[%clk 0:02:36.2]} 9. Bd3 {[%clk 0:02:57]} 9... dxc4 {[%clk
0:02:36.3]} 10. Bxc4 {[%clk 0:02:58.9]} 10... b5 {[%clk 0:02:37.8]} 11. Bd3
{[%clk 0:03:00.1]} 11... a6 {[%clk 0:02:39.4]} 12. O-O {[%clk 0:02:58.8]} 12...
c5 {[%clk 0:02:40.8]} 13. Ne4 {[%clk 0:03:00.2]} 13... c4 {[%clk 0:02:28.9]} 14.
Nxf6+ {[%clk 0:03:00]} 14... Nxf6 {[%clk 0:02:25.2]} 15. Bb1 {[%clk 0:02:57.4]}
15... Bb7 {[%clk 0:02:26.3]} 16. Ne5 {[%clk 0:02:53.2]} 16... Ne4 {[%clk
0:02:18.9]} 17. Bxe7 {[%clk 0:02:43.5]} 17... Qxe7 {[%clk 0:02:20.8]} 18. Qc2
{[%clk 0:02:23]} 18... Rfd8 {[%clk 0:01:38]} 19. f3 {[%clk 0:02:14.7]} 19... Nf6
{[%clk 0:01:38.8]} 20. Ng4 {[%clk 0:02:15]} 20... Rac8 {[%clk 0:01:20.8]} 21.
Rfd1 {[%clk 0:02:02.3]} 21... b4 {[%clk 0:01:00.7]} 22. Ne5 {[%clk 0:02:03]}
22... c3 {[%clk 0:00:45.9]} 23. bxc3 {[%clk 0:02:01.3]} 23... Rxc3 {[%clk
0:00:47.8]} 24. Qd2 {[%clk 0:01:51.3]} 24... Rdc8 {[%clk 0:00:48.7]} 25. Nd3
{[%clk 0:01:50.6]} 25... Nd7 {[%clk 0:00:26.6]} 26. Qb2 {[%clk 0:01:33]} 26...
a5 {[%clk 0:00:18.5]} 27. Rxc3 {[%clk 0:01:33.6]} 27... Rxc3 {[%clk 0:00:19.2]}
28. Rc1 {[%clk 0:01:32.8]} 28... Rxc1+ {[%clk 0:00:19.5]} 29. Qxc1 {[%clk
0:01:33.5]} 29... Qd6 {[%clk 0:00:21]} 30. Nc5 {[%clk 0:01:26.1]} 30... Nxc5
{[%clk 0:00:21]} 31. dxc5 {[%clk 0:01:22.7]} 31... Qc7 {[%clk 0:00:21.5]} 32.
Kf2 {[%clk 0:01:03.5]} 32... Qxh2 {[%clk 0:00:17.4]} 33. c6 {[%clk 0:01:03.7]}
33... Bc8 {[%clk 0:00:08.3]} 34. c7 {[%clk 0:01:02.9]} 34... e5 {[%clk
0:00:05.4]} 35. Qc6 {[%clk 0:00:51.6]} 35... Qh4+ {[%clk 0:00:06.4]} 36. Ke2
{[%clk 0:00:52.2]} 36... Qe7 {[%clk 0:00:06.3]} 37. g4 {[%clk 0:00:41.6]} 37...
g6 {[%clk 0:00:07.4]} 38. Qb6 {[%clk 0:00:33.4]} 38... Qe6 {[%clk 0:00:05.8]}
39. Qxa5 {[%clk 0:00:30.9]} 39... Qa6+ {[%clk 0:00:05.5]} 40. Qxa6 {[%clk
0:00:27.9]} 40... Bxa6+ {[%clk 0:00:07.4]} 41. Bd3 {[%clk 0:00:24.8]} 41... Bc8
{[%clk 0:00:08.4]} 42. Kd2 {[%clk 0:00:25.6]} 42... Kf8 {[%clk 0:00:09.9]} 43.
Kc2 {[%clk 0:00:27.1]} 43... Ke7 {[%clk 0:00:11.3]} 44. Kb3 {[%clk 0:00:28.5]}
44... Kd6 {[%clk 0:00:12.8]} 45. Kxb4 {[%clk 0:00:30.1]} 45... Kxc7 {[%clk
0:00:14.3]} 46. Kc5 {[%clk 0:00:31.4]} 46... Bb7 {[%clk 0:00:15]} 47. Be4 {[%clk
0:00:32.6]} 47... Bxe4 {[%clk 0:00:13.1]} 48. fxe4 {[%clk 0:00:34.1]} 48... h5
{[%clk 0:00:14.6]} 49. gxh5 {[%clk 0:00:35.3]} 49... gxh5 {[%clk 0:00:16.2]} 0-1

[Event "*** Titled Tuesday Blitz"]
[Site "Chess.com"]
[Date "2019.12.03"]
[Round "8"]
[White "francyIM"]
[Black "PowerThinking2650"]
[Result "0-1"]
[WhiteElo "2590"]
[BlackElo "2392"]
[TimeControl "180+2"]
[EndTime "14:54:26 PST"]
[Termination "PowerThinking2650 won by checkmate"]

1. d4 {[%clk 0:03:01.9]} 1... Nf6 {[%clk 0:02:59.9]} 2. c4 {[%clk 0:03:02.7]}
2... g6 {[%clk 0:03:01]} 3. g3 {[%clk 0:03:02.5]} 3... Bg7 {[%clk 0:03:01.9]} 4.
Bg2 {[%clk 0:03:04]} 4... O-O {[%clk 0:03:02.9]} 5. Nc3 {[%clk 0:03:05.2]} 5...
d6 {[%clk 0:03:04.4]} 6. Nf3 {[%clk 0:03:05.9]} 6... Nbd7 {[%clk 0:03:05.9]} 7.
O-O {[%clk 0:03:06.8]} 7... e5 {[%clk 0:03:07.4]} 8. e4 {[%clk 0:03:08.2]} 8...
exd4 {[%clk 0:03:07.8]} 9. Nxd4 {[%clk 0:03:08.8]} 9... Re8 {[%clk 0:03:09.4]}
10. h3 {[%clk 0:03:08.5]} 10... Nc5 {[%clk 0:03:01.9]} 11. Re1 {[%clk
0:03:07.9]} 11... a5 {[%clk 0:03:02.8]} 12. Qc2 {[%clk 0:03:07.1]} 12... Ng4
{[%clk 0:02:47.4]} 13. Ndb5 {[%clk 0:03:03.1]} 13... Ne5 {[%clk 0:02:46.2]} 14.
Rd1 {[%clk 0:02:58.1]} 14... Bd7 {[%clk 0:02:04.5]} 15. Qe2 {[%clk 0:02:44.1]}
15... Qc8 {[%clk 0:01:56.4]} 16. Kh2 {[%clk 0:02:43.9]} 16... Bc6 {[%clk
0:01:43.6]} 17. Be3 {[%clk 0:02:36.8]} 17... b6 {[%clk 0:01:39.1]} 18. Bd4
{[%clk 0:02:36.3]} 18... Ne6 {[%clk 0:01:25.8]} 19. Be3 {[%clk 0:02:34.9]} 19...
Nc5 {[%clk 0:01:25.2]} 20. Rac1 {[%clk 0:02:34.8]} 20... Qb7 {[%clk 0:01:21.9]}
21. Nd5 {[%clk 0:02:31.5]} 21... Bxd5 {[%clk 0:01:20.7]} 22. cxd5 {[%clk
0:02:32]} 22... a4 {[%clk 0:01:16.8]} 23. Nd4 {[%clk 0:02:23.5]} 23... Ned7
{[%clk 0:01:12.4]} 24. Qc2 {[%clk 0:02:19.1]} 24... Nf6 {[%clk 0:01:09.7]} 25.
Nc6 {[%clk 0:02:00.7]} 25... Nfxe4 {[%clk 0:01:01.4]} 26. Bd4 {[%clk 0:02:00.6]}
26... Bxd4 {[%clk 0:00:57.8]} 27. Rxd4 {[%clk 0:02:02.5]} 27... Nf6 {[%clk
0:00:53.5]} 28. Rf4 {[%clk 0:02:02.5]} 28... Nfd7 {[%clk 0:00:43.6]} 29. Qc3
{[%clk 0:01:54]} 29... Qa6 {[%clk 0:00:39.3]} 30. Qf3 {[%clk 0:01:40.7]} 30...
f5 {[%clk 0:00:33.7]} 31. Rfc4 {[%clk 0:01:35.6]} 31... b5 {[%clk 0:00:26.4]}
32. R4c2 {[%clk 0:01:34.8]} 32... Ne5 {[%clk 0:00:24.4]} 33. Nxe5 {[%clk
0:01:35]} 33... Rxe5 {[%clk 0:00:25.4]} 34. Qf4 {[%clk 0:01:34.8]} 34... Rae8
{[%clk 0:00:24]} 35. Qh6 {[%clk 0:01:29]} 35... Qc8 {[%clk 0:00:17.2]} 36. h4
{[%clk 0:01:29.2]} 36... Qd8 {[%clk 0:00:16.2]} 37. h5 {[%clk 0:01:29]} 37...
Qf6 {[%clk 0:00:16.5]} 38. hxg6 {[%clk 0:01:29.5]} 38... hxg6 {[%clk 0:00:14.9]}
39. Bf1 {[%clk 0:01:27.8]} 39... f4 {[%clk 0:00:15]} 40. Qxf4 {[%clk 0:01:25.3]}
40... Qxf4 {[%clk 0:00:14.7]} 41. gxf4 {[%clk 0:01:27.2]} 41... Rf5 {[%clk
0:00:14.9]} 42. Bxb5 {[%clk 0:01:23.5]} 42... Re7 {[%clk 0:00:12.9]} 43. Rc4
{[%clk 0:01:20.6]} 43... g5 {[%clk 0:00:10.2]} 44. Kg3 {[%clk 0:01:15.2]} 44...
Ne4+ {[%clk 0:00:07.7]} 45. Kf3 {[%clk 0:01:13.7]} 45... Rxf4+ {[%clk
0:00:08.3]} 46. Ke3 {[%clk 0:01:12.2]} 46... Nxf2+ {[%clk 0:00:07.9]} 47. Kd2
{[%clk 0:01:12.6]} 47... Ne4+ {[%clk 0:00:08.4]} 48. Kd3 {[%clk 0:01:10.9]}
48... Nc5+ {[%clk 0:00:09]} 49. Kc3 {[%clk 0:01:11.7]} 49... Re3+ {[%clk
0:00:07.5]} 50. Kb4 {[%clk 0:01:12]} 50... Nd3+ {[%clk 0:00:08.4]} 51. Ka5
{[%clk 0:01:11.5]} 51... Nxc1 {[%clk 0:00:09.3]} 52. Rxc1 {[%clk 0:01:13.4]}
52... g4 {[%clk 0:00:10]} 53. Bxa4 {[%clk 0:01:08.9]} 53... g3 {[%clk
0:00:10.9]} 54. Bb5 {[%clk 0:01:06.8]} 54... g2 {[%clk 0:00:11.2]} 55. Rg1
{[%clk 0:01:07.9]} 55... Rg3 {[%clk 0:00:11.8]} 56. a4 {[%clk 0:01:02.8]} 56...
Rh4 {[%clk 0:00:12.7]} 57. Bf1 {[%clk 0:00:54.4]} 57... gxf1=Q {[%clk
0:00:11.1]} 58. Rxf1 {[%clk 0:00:56.3]} 58... Rd4 {[%clk 0:00:10.5]} 59. Rf5
{[%clk 0:00:52.5]} 59... Rb3 {[%clk 0:00:09.9]} 60. Ka6 {[%clk 0:00:52]} 60...
Rxa4# {[%clk 0:00:10.3]} 0-1

[Event "*** Titled Tuesday Blitz"]
[Site "Chess.com"]
[Date "2019.12.03"]
[Round "8"]
[White "marianokar"]
[Black "M1711"]
[Result "1-0"]
[WhiteElo "2421"]
[BlackElo "2512"]
[TimeControl "180+2"]
[EndTime "14:54:28 PST"]
[Termination "marianokar won by checkmate"]

1. d4 {[%clk 0:02:42.1]} 1... e5 {[%clk 0:02:56.7]} 2. dxe5 {[%clk 0:02:41.4]}
2... Nc6 {[%clk 0:02:42.4]} 3. Nf3 {[%clk 0:02:41.2]} 3... Qe7 {[%clk 0:02:44]}
4. Nc3 {[%clk 0:02:41.9]} 4... Nxe5 {[%clk 0:02:45]} 5. Nd5 {[%clk 0:02:43.8]}
5... Nxf3+ {[%clk 0:02:45.9]} 6. gxf3 {[%clk 0:02:45.6]} 6... Qd8 {[%clk
0:02:47.8]} 7. Bf4 {[%clk 0:02:46.4]} 7... d6 {[%clk 0:02:38.8]} 8. Qd2 {[%clk
0:02:43.6]} 8... Nf6 {[%clk 0:02:37]} 9. Bg5 {[%clk 0:02:44]} 9... Be7 {[%clk
0:02:35.9]} 10. Nxe7 {[%clk 0:02:44.9]} 10... Qxe7 {[%clk 0:02:37.8]} 11. O-O-O
{[%clk 0:02:45.6]} 11... h6 {[%clk 0:02:36.7]} 12. Bh4 {[%clk 0:02:43.8]} 12...
Bf5 {[%clk 0:02:36.6]} 13. e4 {[%clk 0:02:38.9]} 13... Bd7 {[%clk 0:02:36.9]}
14. Qd4 {[%clk 0:02:36.3]} 14... Bc6 {[%clk 0:02:03.3]} 15. Rg1 {[%clk
0:02:33.6]} 15... g5 {[%clk 0:02:00.3]} 16. Bg3 {[%clk 0:02:29.4]} 16... Rg8
{[%clk 0:01:58.9]} 17. Bh3 {[%clk 0:02:24.3]} 17... Nh5 {[%clk 0:01:52.2]} 18.
Rge1 {[%clk 0:02:23.9]} 18... Bd7 {[%clk 0:01:48.2]} 19. e5 {[%clk 0:02:24.1]}
19... d5 {[%clk 0:01:40.1]} 20. Bxd7+ {[%clk 0:01:48.4]} 20... Qxd7 {[%clk
0:01:40.7]} 21. Qxd5 {[%clk 0:01:32.5]} 21... O-O-O {[%clk 0:01:32.5]} 22. Qa5
{[%clk 0:01:24.2]} 22... Qc6 {[%clk 0:01:27.4]} 23. Qxa7 {[%clk 0:01:24.2]}
23... b6 {[%clk 0:01:28]} 24. Qa6+ {[%clk 0:01:23.4]} 24... Qb7 {[%clk
0:01:25.9]} 25. Qxb7+ {[%clk 0:01:23.4]} 25... Kxb7 {[%clk 0:01:27.8]} 26. e6
{[%clk 0:01:21.7]} 26... Rxd1+ {[%clk 0:01:21.9]} 27. Kxd1 {[%clk 0:01:19.6]}
27... f5 {[%clk 0:01:21.7]} 28. Be5 {[%clk 0:01:16.9]} 28... Re8 {[%clk
0:01:20.7]} 29. Bc3 {[%clk 0:01:16]} 29... Nf4 {[%clk 0:01:03.9]} 30. e7 {[%clk
0:01:16.5]} 30... Nd5 {[%clk 0:00:57.2]} 31. Bg7 {[%clk 0:01:15.7]} 31... h5
{[%clk 0:00:45]} 32. Bh6 {[%clk 0:01:16.1]} 32... g4 {[%clk 0:00:44.8]} 33. fxg4
{[%clk 0:01:14.8]} 33... hxg4 {[%clk 0:00:37.5]} 34. Bg5 {[%clk 0:01:15]} 34...
Kc6 {[%clk 0:00:22.4]} 35. c4 {[%clk 0:01:06.1]} 35... Nb4 {[%clk 0:00:20]} 36.
a3 {[%clk 0:01:06.5]} 36... Nd3 {[%clk 0:00:20.9]} 37. Re2 {[%clk 0:01:07.9]}
37... Kc5 {[%clk 0:00:18.5]} 38. Kc2 {[%clk 0:01:05.4]} 38... Kxc4 {[%clk
0:00:03.7]} 39. b3+ {[%clk 0:01:03.1]} 39... Kd4 {[%clk 0:00:03.1]} 40. Bf6+
{[%clk 0:01:03.7]} 40... Kd5 {[%clk 0:00:02.6]} 41. Kxd3 {[%clk 0:01:03.2]}
41... f4 {[%clk 0:00:04.2]} 42. Re4 {[%clk 0:00:59.8]} 42... f3 {[%clk
0:00:03.6]} 43. Rd4+ {[%clk 0:01:00.3]} 43... Ke6 {[%clk 0:00:04.8]} 44. Rd8
{[%clk 0:01:01.6]} 44... Kf7 {[%clk 0:00:03.1]} 45. Rxe8 {[%clk 0:01:01.8]}
45... Kxe8 {[%clk 0:00:05]} 46. a4 {[%clk 0:01:00.4]} 46... c5 {[%clk
0:00:05.4]} 47. Ke4 {[%clk 0:01:00]} 47... Kd7 {[%clk 0:00:07.3]} 48. Kf4 {[%clk
0:01:00.4]} 48... Ke8 {[%clk 0:00:09.2]} 49. Kxg4 {[%clk 0:01:00.9]} 49... Kd7
{[%clk 0:00:11.1]} 50. h4 {[%clk 0:01:01]} 50... Ke8 {[%clk 0:00:13]} 51. h5
{[%clk 0:01:01.6]} 51... Kd7 {[%clk 0:00:14.9]} 52. h6 {[%clk 0:01:02.4]} 52...
Ke8 {[%clk 0:00:16.8]} 53. h7 {[%clk 0:01:03.2]} 53... Kd7 {[%clk 0:00:18.7]}
54. Kxf3 {[%clk 0:01:01]} 54... Kc6 {[%clk 0:00:20.6]} 55. Ke4 {[%clk
0:01:01.3]} 55... Kb7 {[%clk 0:00:22.5]} 56. Kd5 {[%clk 0:01:01.4]} 56... c4
{[%clk 0:00:24.4]} 57. bxc4 {[%clk 0:01:01.3]} 57... b5 {[%clk 0:00:26.3]} 58.
axb5 {[%clk 0:01:01.1]} 58... Ka7 {[%clk 0:00:28.2]} 59. e8=Q {[%clk 0:01:00.2]}
59... Kb7 {[%clk 0:00:30.1]} 60. Qd7+ {[%clk 0:01:00.1]} 60... Kb6 {[%clk
0:00:32]} 61. Qd6+ {[%clk 0:01:00.6]} 61... Ka5 {[%clk 0:00:33.9]} 62. Bc3+
{[%clk 0:01:00.2]} 62... Ka4 {[%clk 0:00:35.8]} 63. Qb4# {[%clk 0:00:50.8]} 1-0